bitfinex/quotes_BTCUSD_20250222
["timestamp","ask_amount","ask_price","bid_price","bid_amount"]
[1740195497084,0.49468418,96422.0,96421.0,0.50198828]
[1740195497262,0.49768418,96422.0,96421.0,0.50198828]
[1740195500908,0.52042448,96422.0,96421.0,0.50198828]
[1740195502613,0.35880919,96422.0,96421.0,0.50198828]
[1740195503021,0.19548164,96422.0,96421.0,0.50198828]
[1740195503231,0.19548164,96422.0,96421.0,0.54958828]
[1740195503438,0.19548164,96422.0,96421.0,0.62688828]
[1740195503642,0.04548164,96422.0,96421.0,0.62688828]
[1740195503848,0.0277403,96422.0,96421.0,0.62688828]
[1740195504050,0.0247403,96422.0,96421.0,0.62688828]
[1740195504396,0.00649518,96422.0,96421.0,0.78245528]
[1740195505521,0.00649518,96422.0,96421.0,0.88510097]
[1740195506115,0.01038819,96438.0,96427.0,0.155557]
[1740195506423,0.0017012,96442.0,96428.0,0.23337284]
[1740195506644,0.0017012,96442.0,96430.0,0.155553]
[1740195506934,0.09336774,96430.0,96429.0,0.36296]
[1740195507129,0.09336774,96430.0,96429.0,0.155554]
[1740195507266,0.09336774,96430.0,96429.0,0.0773]
[1740195507473,0.10980091,96430.0,96429.0,0.0773]
[1740195507887,0.11080091,96430.0,96429.0,0.0773]
[1740195508333,0.10980091,96430.0,96429.0,0.0773]
[1740195509853,0.09336774,96430.0,96429.0,0.0773]
[1740195511457,0.01210834,96442.0,96429.0,0.0773]
[1740195511600,0.02194753,96441.0,96430.0,0.10847284]
[1740195511796,0.0383807,96441.0,96430.0,0.10847284]
[1740195513581,0.01643317,96441.0,96430.0,0.10847284]
[1740195513778,0.02043317,96441.0,96430.0,0.10847284]
[1740195514362,0.02343317,96441.0,96430.0,0.10847284]
[1740195514566,0.01943317,96441.0,96430.0,0.10847284]
[1740195514763,0.00649288,96440.0,96430.0,0.10847284]
[1740195515148,0.00649288,96440.0,96430.0,0.10947284]
[1740195515367,0.01643317,96439.0,96430.0,0.10947284]
[1740195516138,0.00775338,96438.0,96430.0,0.10947284]
[1740195516338,0.01424626,96438.0,96430.0,0.10947284]
[1740195516977,0.01424626,96438.0,96430.0,0.10847284]
[1740195517364,0.00775338,96437.0,96430.0,0.10947284]
[1740195517766,0.01424626,96437.0,96430.0,0.10847284]
[1740195518180,0.01424626,96437.0,96430.0,0.11047284]
[1740195518582,0.02420954,96436.0,96430.0,0.002]
[1740195519234,0.00649288,96435.0,96430.0,0.002]
[1740195519375,0.00649288,96435.0,96429.0,0.0773]
[1740195519577,0.01801168,96434.0,96428.0,0.0476]
[1740195519958,0.02420954,96434.0,96430.0,0.003]
[1740195520162,0.00775338,96434.0,96430.0,0.001]
[1740195520363,0.01645616,96433.0,96428.0,0.0476]
[1740195520598,0.01645616,96433.0,96430.0,0.002]
[1740195520978,0.01645616,96433.0,96428.0,0.0476]
[1740195521120,0.00775338,96432.0,96430.0,0.001]
[1740195521330,0.00775338,96432.0,96430.0,0.002]
[1740195521574,0.01645616,96431.0,96430.0,0.002]
[1740195522115,0.02420954,96431.0,96430.0,0.002]
[1740195522455,0.03070242,96431.0,96430.0,0.002]
[1740195523121,0.18625442,96431.0,96428.0,0.0476]
[1740195523328,0.18625442,96431.0,96430.0,0.003]
[1740195523647,0.18625442,96431.0,96430.0,0.002]
[1740195523852,0.155553,96430.0,96428.0,0.0476]
[1740195524640,0.02294904,96429.0,96428.0,0.0476]
[1740195525029,0.02294904,96429.0,96428.0,0.0486]
[1740195525323,0.03070242,96429.0,96428.0,0.0486]
[1740195525900,0.04109148,96429.0,96428.0,0.0486]
[1740195526436,0.04109148,96429.0,96428.0,0.0496]
[1740195526634,0.04109148,96429.0,96428.0,0.0506]
[1740195526844,0.04109148,96429.0,96428.0,0.0486]
[1740195527057,0.34664548,96429.0,96428.0,0.003]
[1740195527758,0.34664548,96429.0,96428.0,0.002]
[1740195528182,0.34964548,96429.0,96428.0,0.002]
[1740195528613,0.155566,96422.0,96410.0,0.18377284]
[1740195528827,0.305566,96422.0,96410.0,0.18377284]
[1740195529110,0.32201769,96422.0,96410.0,0.18377284]
[1740195529734,0.32851057,96422.0,96410.0,0.0753]
[1740195530342,0.33626395,96422.0,96410.0,0.0753]
[1740195531549,0.33626395,96422.0,96421.0,0.50298828]
[1740195534559,0.32977107,96422.0,96421.0,0.50298828]
[1740195536765,0.32201769,96422.0,96421.0,0.50298828]
[1740195538632,0.39607284,96422.0,96421.0,0.50298828]
[1740195538830,0.32201769,96422.0,96421.0,0.50298828]
[1740195556572,0.32371849,96422.0,96421.0,0.50298828]
[1740195571452,0.16815249,96422.0,96421.0,0.50298828]
[1740195571623,0.01815249,96422.0,96421.0,0.50298828]
[1740195572197,0.01816308,96422.0,96421.0,0.50298828]
[1740195580242,0.0017008,96422.0,96421.0,0.50298828]
[1740195600878,0.01816814,96422.0,96421.0,0.50298828]
[1740195601078,0.0017008,96422.0,96421.0,0.50298828]
[1740195601304,0.17373414,96422.0,96421.0,0.50298828]
[1740195601505,0.1572668,96422.0,96421.0,0.50298828]
[1740195601709,0.17373414,96422.0,96421.0,0.50298828]
[1740195602333,0.39796083,96422.0,96421.0,0.50298828]
[1740195604252,0.32373414,96422.0,96421.0,0.50298828]
[1740195614358,0.16816814,96422.0,96421.0,0.50298828]
[1740195614949,0.16816814,96422.0,96421.0,0.58518828]
[1740195615187,0.01816814,96422.0,96421.0,0.58518828]
[1740195615394,0.0017008,96422.0,96421.0,0.58518828]
[1740195634485,0.0017008,96422.0,96421.0,0.50298828]
[1740195648896,0.0017008,96422.0,96421.0,0.49798828]
[1740195651062,0.0017008,96422.0,96421.0,0.49883868]
[1740195674484,0.1572668,96422.0,96421.0,0.49883868]
[1740195674880,0.17574903,96422.0,96421.0,0.49883868]
[1740195675218,0.22221591,96422.0,96421.0,0.49883868]
[1740195675402,0.22999904,96422.0,96421.0,0.49883868]
[1740195675617,0.18353216,96422.0,96421.0,0.49883868]
[1740195676270,0.19002576,96422.0,96421.0,0.49883868]
[1740195677761,0.03445976,96422.0,96421.0,0.49883868]
[1740195678690,0.01597753,96422.0,96421.0,0.49883868]
[1740195678894,0.03445976,96422.0,96421.0,0.49883868]
[1740195682201,0.01597753,96422.0,96421.0,0.49883868]
[1740195685418,0.17154353,96422.0,96421.0,0.49883868]
[1740195685549,0.19002576,96422.0,96421.0,0.49883868]
[1740195693859,0.1915815,96422.0,96421.0,0.49883868]
[1740195696614,0.1915815,96422.0,96421.0,0.49783868]
[1740195696915,0.1915815,96422.0,96421.0,0.49883868]
[1740195697091,0.1925815,96422.0,96421.0,0.49883868]
[1740195697294,0.1915815,96422.0,96421.0,0.49783868]
[1740195697488,0.2694996,96422.0,96421.0,0.49783868]
[1740195697698,0.26894386,96422.0,96421.0,0.49783868]
[1740195706059,0.52158955,96422.0,96421.0,0.49783868]
[1740195706234,0.65058955,96422.0,96421.0,0.49783868]
[1740195706641,5.70058955,96422.0,96421.0,0.49783868]
[1740195707533,5.69958955,96422.0,96421.0,0.49783868]
[1740195707740,5.71398224,96422.0,96421.0,0.45107158]
[1740195708373,5.73152309,96422.0,96421.0,0.45107158]
[1740195709650,5.74776872,96422.0,96421.0,0.45107158]
[1740195712101,5.73737603,96422.0,96421.0,0.45107158]
[1740195713751,4.98677603,96422.0,96421.0,0.45107158]
[1740195714106,4.42227603,96422.0,96421.0,0.45107158]
[1740195714454,4.13657603,96422.0,96421.0,0.45107158]
[1740195714633,4.12317603,96422.0,96421.0,0.45107158]
[1740195716502,4.1069304,96422.0,96421.0,0.45107158]
[1740195717555,4.1029304,96422.0,96421.0,0.45107158]
[1740195717772,4.12032334,96422.0,96421.0,0.45107158]
[1740195718063,4.11032334,96422.0,96421.0,0.45107158]
[1740195718366,4.11632334,96422.0,96421.0,0.45107158]
[1740195718565,4.12332334,96422.0,96421.0,0.45107158]
[1740195718838,4.11732334,96422.0,96421.0,0.45107158]
[1740195719488,4.12332334,96422.0,96421.0,0.45107158]
[1740195719699,4.13956897,96422.0,96421.0,0.45107158]
[1740195723192,0.70376897,96422.0,96421.0,0.45107158]
[1740195723554,0.70376897,96422.0,96421.0,0.40430334]
[1740195723755,5.07296897,96422.0,96421.0,0.40430334]
[1740195725487,5.06257603,96422.0,96421.0,0.40430334]
[1740195726449,5.0463304,96422.0,96421.0,0.40430334]
[1740195727883,5.05672335,96422.0,96421.0,0.40430334]
[1740195729052,0.305577,96415.0,96414.0,0.0008505]
[1740195729249,5.45822269,96415.0,96414.0,0.00098002]
[1740195729458,5.47666949,96415.0,96414.0,0.00098002]
[1740195729815,5.49291583,96415.0,96414.0,0.00098002]
[1740195729997,5.50980238,96415.0,96414.0,0.00098002]
[1740195730405,5.61244807,96415.0,96414.0,0.00098002]
[1740195730613,5.62144807,96415.0,96414.0,0.00098002]
[1740195730815,5.6292312,96415.0,96414.0,0.00098002]
[1740195732629,5.61883825,96415.0,96414.0,0.00098002]
[1740195733335,5.61883825,96415.0,96403.0,0.0017012]
[1740195733536,0.305595,96404.0,96403.0,0.0017012]
[1740195733972,0.40824069,96404.0,96403.0,0.0017012]
[1740195734347,5.49292896,96404.0,96403.0,0.0017012]
[1740195734708,5.49392896,96404.0,96403.0,0.0017012]
[1740195734909,5.50042256,96404.0,96403.0,0.0017012]
[1740195735130,5.60306825,96404.0,96403.0,0.0017012]
[1740195735534,5.61085138,96404.0,96403.0,0.0017012]
[1740195736148,5.62439223,96404.0,96403.0,0.0017012]
[1740195736362,5.62939223,96404.0,96403.0,0.0017012]
[1740195736555,5.61914493,96404.0,96403.0,0.0017012]
[1740195736760,5.60814493,96404.0,96403.0,0.0017012]
[1740195737180,5.61914493,96404.0,96403.0,0.0017012]
[1740195737615,0.16454085,96403.0,96391.0,0.0004]
[1740195737827,0.32014885,96396.0,96391.0,0.0004]
[1740195738149,5.37014885,96396.0,96391.0,0.0004]
[1740195738346,5.38857726,96396.0,96391.0,0.0004]
[1740195738555,5.49900608,96396.0,96391.0,0.0004]
[1740195738874,5.60165177,96396.0,96391.0,0.0004]
[1740195739513,5.61790285,96396.0,96391.0,0.0004]
[1740195739878,5.63479208,96396.0,96391.0,0.0004]
[1740195740319,5.63979208,96396.0,96391.0,0.0004]
[1740195740516,5.64379208,96396.0,96391.0,0.0004]
[1740195741008,5.63479208,96396.0,96391.0,0.0004]
[1740195741407,5.64579208,96396.0,96391.0,0.0004]
[1740195746258,5.63539645,96396.0,96391.0,0.0004]
[1740195746419,5.61914537,96396.0,96391.0,0.0004]
[1740195748844,5.61414537,96396.0,96391.0,0.0004]
[1740195749534,5.63639555,96396.0,96391.0,0.0004]
[1740195749756,5.63639555,96396.0,96381.0,0.0487]
[1740195749757,0.305642,96375.0,96374.0,0.0048216]
[1740195749960,0.3362062,96375.0,96374.0,0.0048216]
[1740195750280,0.35458813,96375.0,96374.0,0.0048216]
[1740195750894,0.37083959,96375.0,96374.0,0.0048216]
[1740195751122,0.37083959,96375.0,96374.0,0.0048977]
[1740195751329,0.37733319,96375.0,96374.0,0.0048977]
[1740195751766,0.38511632,96375.0,96374.0,0.0048977]
[1740195752731,0.39011632,96375.0,96374.0,0.0048977]
[1740195753649,0.38851632,96375.0,96374.0,0.0048977]
[1740195755861,0.39905463,96375.0,96374.0,0.0048977]
[1740195756461,0.38280317,96375.0,96374.0,0.0057483]
[1740195760793,0.39905481,96375.0,96374.0,0.0057483]
[1740195765745,0.36849061,96375.0,96374.0,0.0057483]
[1740195766573,0.36199701,96375.0,96374.0,0.0057483]
[1740195766776,0.34574537,96375.0,96374.0,0.0057483]
[1740195771576,0.19170337,96375.0,96374.0,0.1314483]
[1740195772140,0.04170337,96375.0,96374.0,0.1314483]
[1740195772558,0.02916506,96375.0,96374.0,0.38973699]
[1740195772782,0.01178313,96375.0,96374.0,0.38973699]
[1740195773103,0.00878313,96375.0,96374.0,0.38973699]
[1740195773260,0.01178313,96375.0,96374.0,0.38973699]
[1740195773630,0.00778313,96375.0,96374.0,0.38973699]
[1740195774406,0.00878313,96375.0,96374.0,0.38973699]
[1740195775336,0.00978313,96375.0,96374.0,0.38973699]
[1740195775471,0.002,96375.0,96374.0,0.38973699]
[1740195780929,0.0037014,96375.0,96374.0,0.38973699]
[1740195790530,0.0037014,96375.0,96374.0,0.39749699]
[1740195802512,0.0037014,96375.0,96374.0,0.38973699]
[1740195802839,0.0037014,96375.0,96374.0,0.39749699]
[1740195804489,0.0037014,96375.0,96374.0,0.38973699]
[1740195804680,0.0037014,96375.0,96374.0,0.39745699]
[1740195807027,0.0037014,96375.0,96374.0,0.27175699]
[1740195808156,0.0037014,96375.0,96374.0,0.26403699]
[1740195809776,0.0179742,96375.0,96374.0,0.26403699]
[1740195811204,0.01019724,96375.0,96374.0,0.26403699]
[1740195813132,0.01019724,96375.0,96374.0,0.0057483]
[1740195813510,0.02859455,96375.0,96374.0,0.0057483]
[1740195813650,0.01019724,96375.0,96374.0,0.0057483]
[1740195813854,0.03636874,96375.0,96374.0,0.0057483]
[1740195814258,0.01797143,96375.0,96374.0,0.0057483]
[1740195819936,0.01797143,96375.0,96374.0,0.26460458]
[1740195820143,0.01797143,96375.0,96374.0,0.34693699]
[1740195820545,0.01147559,96375.0,96374.0,0.34693699]
[1740195821867,0.0037014,96375.0,96374.0,0.34693699]
[1740195822445,0.0037014,96375.0,96374.0,0.35473699]
[1740195843818,0.0037014,96375.0,96374.0,0.10839399]
[1740195844029,0.0037014,96375.0,96374.0,0.26403699]
[1740195845409,0.0037014,96375.0,96374.0,0.27179699]
[1740195847759,0.0037014,96375.0,96374.0,0.26403699]
[1740195848577,0.0843014,96375.0,96374.0,0.0057483]
[1740195848943,0.10138201,96375.0,96374.0,0.0057483]
[1740195849343,0.26479053,96375.0,96374.0,0.0057483]
[1740195850179,0.26379053,96375.0,96374.0,0.0057483]
[1740195850791,0.26279053,96375.0,96374.0,0.0057483]
[1740195851606,0.26379053,96375.0,96374.0,0.0057483]
[1740195852064,0.26279053,96375.0,96374.0,0.0057483]
[1740195852610,0.26379053,96375.0,96374.0,0.0057483]
[1740195854517,0.26279053,96375.0,96374.0,0.0057483]
[1740195854981,0.26379053,96375.0,96374.0,0.0057483]
[1740195856006,0.25502401,96375.0,96374.0,0.0057483]
[1740195856840,0.25602401,96375.0,96374.0,0.0057483]
[1740195858677,0.25502401,96375.0,96374.0,0.0057483]
[1740195869869,0.32663991,96375.0,96374.0,0.0057483]
[1740195871064,0.25502401,96375.0,96374.0,0.0057483]
[1740195887006,0.17442401,96375.0,96374.0,0.0057483]
[1740195899683,0.01878201,96375.0,96374.0,0.0057483]
[1740195900094,0.17442401,96375.0,96374.0,0.0057483]
[1740195900649,0.01878201,96375.0,96374.0,0.0057483]
[1740195904106,0.0017014,96375.0,96374.0,0.0057483]
[1740195904470,0.01876125,96375.0,96374.0,0.0057483]
[1740195904877,0.0017014,96375.0,96374.0,0.0057483]
[1740195905162,0.01876125,96375.0,96374.0,0.0057483]
[1740195905370,0.0017014,96375.0,96374.0,0.0057483]
[1740195906160,0.01876125,96375.0,96374.0,0.0057483]
[1740195906577,0.0017014,96375.0,96374.0,0.0057483]
[1740195908265,0.01876408,96375.0,96374.0,0.0057483]
[1740195908466,0.0017014,96375.0,96374.0,0.0057483]
[1740195908671,0.01876408,96375.0,96374.0,0.0057483]
[1740195908875,0.0017014,96375.0,96374.0,0.0057483]
[1740195909073,0.01876408,96375.0,96374.0,0.0057483]
[1740195910116,0.17440608,96375.0,96374.0,0.0057483]
[1740195910317,0.01876408,96375.0,96374.0,0.0057483]
[1740195910467,0.17440608,96375.0,96374.0,0.0057483]
[1740195927843,0.17440608,96375.0,96374.0,0.0007483]
[1740195930875,0.17440608,96375.0,96374.0,0.0015987]
[1740195954977,0.1573434,96375.0,96374.0,0.0015987]
[1740195955245,0.17440843,96375.0,96374.0,0.0015987]
[1740195973400,0.24113363,96375.0,96374.0,0.0015987]
[1740195975011,0.18218939,96375.0,96374.0,0.0015987]
[1740195977334,0.02654739,96375.0,96374.0,0.0015987]
[1740195978328,0.18218939,96375.0,96374.0,0.0015987]
[1740196004305,0.02654739,96375.0,96374.0,0.0015987]
[1740196004835,0.00948236,96375.0,96374.0,0.0015987]
[1740196009694,0.02654859,96375.0,96374.0,0.0015987]
[1740196023301,0.18219059,96375.0,96374.0,0.0015987]
[1740196023875,0.02654859,96375.0,96374.0,0.0015987]
[1740196025346,0.18219059,96375.0,96374.0,0.0015987]
[1740196052372,0.18219059,96375.0,96374.0,0.0026987]
[1740196054755,0.17440963,96375.0,96374.0,0.0026987]
[1740196057077,0.17620963,96375.0,96374.0,0.0026987]
[1740196059788,0.4018904,96375.0,96374.0,0.0026987]
[1740196059964,0.44783399,96375.0,96374.0,0.0026987]
[1740196060366,0.45561321,96375.0,96374.0,0.0026987]
[1740196061209,0.47386533,96375.0,96374.0,0.0026987]
[1740196061526,0.47186533,96375.0,96374.0,0.0026987]
[1740196062184,0.47486533,96375.0,96374.0,0.0026987]
[1740196062809,0.47786533,96375.0,96374.0,0.0026987]
[1740196066634,0.46161321,96375.0,96374.0,0.0026987]
[1740196069786,0.4778653,96375.0,96374.0,0.0026987]
[1740196070901,0.4748653,96375.0,96374.0,0.0026987]
[1740196071227,0.4788653,96375.0,96374.0,0.0026987]
[1740196071731,0.4758653,96375.0,96374.0,0.0026987]
[1740196072394,0.4768653,96375.0,96374.0,0.0026987]
[1740196072593,0.40274094,96375.0,96374.0,0.0026987]
[1740196073618,0.39774094,96375.0,96374.0,0.0026987]
[1740196074043,0.40874094,96375.0,96374.0,0.0026987]
[1740196074245,0.40274094,96375.0,96374.0,0.0026987]
[1740196074549,0.39774094,96375.0,96374.0,0.0026987]
[1740196074690,0.50029478,96375.0,96374.0,0.0026987]
[1740196074914,0.50529478,96375.0,96374.0,0.0026987]
[1740196076030,5.55529478,96375.0,96374.0,0.0026987]
[1740196076639,5.53904269,96375.0,96374.0,0.0026987]
[1740196079785,5.55529609,96375.0,96374.0,0.0026987]
[1740196080377,5.65794178,96375.0,96374.0,0.0026987]
[1740196081104,5.72514178,96375.0,96374.0,0.0026987]
[1740196081333,5.73114178,96375.0,96374.0,7e-07]
[1740196081555,5.2,96374.0,96366.0,55.59691696]
[1740196081759,0.429254,96367.0,96366.0,55.59696005]
[1740196081988,5.58189969,96367.0,96366.0,55.59696005]
[1740196082561,5.58967891,96367.0,96366.0,55.59696005]
[1740196083248,5.59767243,96367.0,96366.0,55.59696005]
[1740196084248,5.61167243,96367.0,96366.0,55.59696005]
[1740196085468,0.56167243,96367.0,96366.0,55.59696005]
[1740196086045,5.61167243,96367.0,96366.0,55.59696005]
[1740196088308,5.60467243,96367.0,96366.0,55.59696005]
[1740196088660,5.70731812,96367.0,96366.0,55.57615329]
[1740196089167,5.70031812,96367.0,96366.0,55.57615329]
[1740196089978,5.70731812,96367.0,96366.0,55.57615329]
[1740196090991,5.71431812,96367.0,96366.0,55.57700379]
[1740196093465,5.73057358,96367.0,96366.0,55.57700379]
[1740196098290,5.73707308,96367.0,96366.0,55.57700379]
[1740196103560,5.73877408,96367.0,96366.0,55.57700379]
[1740196103718,5.71601912,96367.0,96366.0,55.57700379]
[1740196105926,5.63981912,96367.0,96366.0,55.57700379]
[1740196107218,5.65607456,96367.0,96366.0,55.57700379]
[1740196108168,5.65607456,96367.0,96366.0,55.47664934]
[1740196108380,5.76701541,96367.0,96366.0,55.32392934]
[1740196108585,5.75075997,96367.0,96366.0,55.32392934]
[1740196110051,5.67435997,96367.0,96366.0,55.32392934]
[1740196111692,5.69061541,96367.0,96366.0,55.28652429]
[1740196112670,6.01111541,96367.0,96366.0,55.28652429]
[1740196115105,5.96371541,96367.0,96366.0,55.28652429]
[1740196115929,0.91371541,96367.0,96366.0,55.28652429]
[1740196116305,5.96371541,96367.0,96366.0,55.28652429]
[1740196117483,5.95593619,96367.0,96366.0,55.28652429]
[1740196123452,5.96371464,96367.0,96366.0,55.28652429]
[1740196124317,6.05680719,96367.0,96366.0,55.28652429]
[1740196127926,5.96371464,96367.0,96366.0,55.28652429]
[1740196129550,0.91371464,96367.0,96366.0,55.28652429]
[1740196129750,5.96371464,96367.0,96366.0,55.28652429]
[1740196131087,5.96371464,96367.0,96366.0,55.28252978]
[1740196140317,5.8265281,96367.0,96366.0,55.28252978]
[1740196141063,5.81027266,96367.0,96366.0,55.28252978]
[1740196144763,0.76027266,96367.0,96366.0,55.28252978]
[1740196145207,5.81027266,96367.0,96366.0,55.28252978]
[1740196145686,5.82652645,96367.0,96366.0,55.28252978]
[1740196146271,5.81027266,96367.0,96366.0,55.28252978]
[1740196146794,5.88523814,96367.0,96366.0,55.28252978]
[1740196147202,5.88523814,96367.0,96366.0,50.2657375]
[1740196148568,5.87724462,96367.0,96366.0,50.2657375]
[1740196149147,5.89349841,96367.0,96366.0,50.2657375]
[1740196156484,5.87724462,96367.0,96366.0,50.2657375]
[1740196159650,5.89349841,96367.0,96366.0,50.2657375]
[1740196165624,5.88571996,96367.0,96366.0,50.2657375]
[1740196166447,5.86946617,96367.0,96366.0,50.2657375]
[1740196167201,0.81946617,96367.0,96366.0,50.2657375]
[1740196167601,5.86946617,96367.0,96366.0,50.2657375]
[1740196170036,5.88572002,96367.0,96366.0,50.2657375]
[1740196174935,5.90026087,96367.0,96366.0,50.2657375]
[1740196176554,5.88400702,96367.0,96366.0,50.2657375]
[1740196180974,5.90026085,96367.0,96366.0,50.2657375]
[1740196186480,5.82529537,96367.0,96366.0,50.2657375]
[1740196186675,5.80904154,96367.0,96366.0,50.2657375]
[1740196190119,5.82529528,96367.0,96366.0,50.2657375]
[1740196190317,3.80585443,96367.0,96366.0,50.2657375]
[1740196190487,3.80585443,96367.0,96366.0,50.3483375]
[1740196191581,3.80585443,96367.0,96366.0,50.2657375]
[1740196193425,1.65585443,96367.0,96366.0,50.2657375]
[1740196193631,1.65585443,96367.0,96366.0,50.3461375]
[1740196194545,1.64885443,96367.0,96366.0,50.3461375]
[1740196194747,1.64185443,96367.0,96366.0,50.3461375]
[1740196195062,1.65485443,96367.0,96366.0,50.3461375]
[1740196195822,1.33435443,96367.0,96366.0,50.3461375]
[1740196196370,1.31810069,96367.0,96366.0,50.3461375]
[1740196198071,3.04880069,96367.0,96366.0,50.3461375]
[1740196198253,3.04030069,96367.0,96366.0,50.3461375]
[1740196199446,3.12541419,96367.0,96366.0,50.3461375]
[1740196199624,3.14166753,96367.0,96366.0,50.3461375]
[1740196200385,3.05655403,96367.0,96366.0,50.3461375]
[1740196206551,3.04030069,96367.0,96366.0,50.3461375]
[1740196209496,3.056554,96367.0,96366.0,50.3461375]
[1740196213577,0.439254,96367.0,96366.0,50.3461375]
[1740196213756,5.489254,96367.0,96366.0,50.3461375]
[1740196214686,5.50010611,96367.0,96366.0,50.3461375]
[1740196215366,5.48100611,96367.0,96366.0,50.3461375]
[1740196216399,5.5836518,96367.0,96366.0,50.3461375]
[1740196216527,5.56739849,96367.0,96366.0,50.2657375]
[1740196219587,5.58365342,96367.0,96366.0,50.2657375]
[1740196226457,5.56739849,96367.0,96366.0,50.2657375]
[1740196227101,5.4647528,96367.0,96366.0,50.2657375]
[1740196229812,5.50010772,96367.0,96366.0,50.2657375]
[1740196239410,5.4838528,96367.0,96366.0,50.2657375]
[1740196242279,5.50010773,96367.0,96366.0,50.2657375]
[1740196246592,5.4838528,96367.0,96366.0,50.2657375]
[1740196247312,5.4838528,96367.0,96366.0,50.3419375]
[1740196247522,4.5654528,96367.0,96366.0,50.3419375]
[1740196249151,4.5584528,96367.0,96366.0,50.3419375]
[1740196249360,4.5594528,96367.0,96366.0,50.3419375]
[1740196249531,4.57370769,96367.0,96366.0,50.3419375]
[1740196250298,4.57770769,96367.0,96366.0,50.3419375]
[1740196251088,2.33340769,96367.0,96366.0,50.3419375]
[1740196251515,0.037808,96367.0,96366.0,50.3419375]
[1740196251724,0.02695589,96367.0,96366.0,50.4975935]
[1740196251936,0.02695589,96367.0,96366.0,50.5451935]
[1740196251937,0.010701,96367.0,96366.0,50.5451935]
[1740196252464,0.006701,96367.0,96366.0,50.5451935]
[1740196252668,0.005701,96367.0,96366.0,50.5451935]
[1740196253045,0.003701,96367.0,96366.0,50.5451935]
[1740196253557,0.004701,96367.0,96366.0,50.5451935]
[1740196259104,0.004701,96367.0,96366.0,50.64783919]
[1740196259952,0.001701,96367.0,96366.0,50.64783919]
[1740196260149,0.001701,96367.0,96366.0,50.64983919]
[1740196260549,0.001701,96367.0,96366.0,50.64883919]
[1740196261537,0.001701,96367.0,96366.0,50.64783919]
[1740196261804,0.0017014,96375.0,96374.0,0.155643]
[1740196262009,0.0017014,96375.0,96374.0,0.38725569]
[1740196262160,0.0017014,96375.0,96374.0,0.38568869]
[1740196262750,0.0017014,96375.0,96374.0,0.38368869]
[1740196263355,0.0027014,96375.0,96374.0,0.38568869]
[1740196264253,0.0027014,96375.0,96374.0,0.40022954]
[1740196265085,0.0037014,96375.0,96374.0,0.40222954]
[1740196268762,0.0037014,96375.0,96374.0,0.68172954]
[1740196268936,0.0012,96378.0,96374.0,0.68172954]
[1740196268937,0.0012,96378.0,96377.0,0.303038]
[1740196269166,0.0012,96378.0,96377.0,0.42022454]
[1740196269592,0.0012,96378.0,96377.0,0.41922454]
[1740196270407,0.0022,96378.0,96377.0,0.42222454]
[1740196271627,0.0022,96378.0,96377.0,0.41078454]
[1740196271797,0.0032,96378.0,96377.0,0.40124369]
[1740196272165,0.0032,96378.0,96377.0,0.39368369]
[1740196272368,0.0012,96378.0,96377.0,0.38568369]
[1740196272567,0.0012,96378.0,96377.0,0.39268369]
[1740196272777,0.0012,96378.0,96377.0,0.39968369]
[1740196272973,0.0012,96378.0,96377.0,0.39268369]
[1740196273209,0.0012,96378.0,96377.0,0.39168369]
[1740196273420,0.0012,96378.0,96377.0,0.39868369]
[1740196274160,0.0012,96378.0,96377.0,0.40624369]
[1740196274382,0.0012,96378.0,96377.0,0.42078454]
[1740196276242,0.0029008,96378.0,96377.0,0.42078454]
[1740196277116,0.0029008,96378.0,96377.0,0.41322454]
[1740196277320,0.0029008,96378.0,96377.0,0.42078454]
[1740196277521,0.0029008,96378.0,96377.0,0.40624369]
[1740196282574,0.0029008,96378.0,96377.0,0.39868369]
[1740196282722,0.0029008,96378.0,96377.0,0.40624369]
[1740196287889,0.0029008,96378.0,96377.0,0.40709399]
[1740196289733,0.0029008,96378.0,96377.0,0.39953399]
[1740196289914,0.0029008,96378.0,96377.0,0.40709399]
[1740196297710,0.0029008,96378.0,96377.0,0.42163484]
[1740196298873,0.0029008,96378.0,96377.0,0.53113484]
[1740196299075,0.0029008,96378.0,96377.0,0.42163484]
[1740196302753,0.0029008,96378.0,96377.0,0.43178937]
[1740196309990,0.0029008,96378.0,96377.0,0.42478937]
[1740196310191,0.0029008,96378.0,96377.0,0.41878937]
[1740196310408,0.0039008,96378.0,96377.0,0.42578937]
[1740196310808,0.0049008,96378.0,96377.0,0.42522937]
[1740196311070,0.0049008,96378.0,96377.0,0.43274937]
[1740196312571,0.0049008,96378.0,96377.0,0.54224937]
[1740196313357,0.0039008,96378.0,96377.0,0.53524937]
[1740196313559,0.0039008,96378.0,96377.0,0.54224937]
[1740196313816,0.0039008,96378.0,96377.0,0.53524937]
[1740196314325,0.0029008,96378.0,96377.0,0.52824937]
[1740196314523,0.0039008,96378.0,96377.0,0.53524937]
[1740196315083,0.0039008,96378.0,96377.0,0.54224937]
[1740196324316,0.0039008,96378.0,96377.0,0.71124937]
[1740196328843,0.0039008,96378.0,96377.0,0.73124937]
[1740196330821,0.0039008,96378.0,96377.0,0.73540737]
[1740196336957,8e-07,96378.0,96377.0,0.73540737]
[1740196337947,8e-07,96378.0,96377.0,0.72788737]
[1740196338143,8e-07,96378.0,96377.0,0.73540737]
[1740196338765,0.0017008,96404.0,96385.0,0.1295]
[1740196338999,0.0017008,96404.0,96385.0,0.40287797]
[1740196339169,0.0017008,96404.0,96385.0,0.40231154]
[1740196340057,0.0017008,96404.0,96385.0,0.40931154]
[1740196340437,0.0017008,96404.0,96385.0,0.41631154]
[1740196342628,0.0017008,96404.0,96385.0,0.40231154]
[1740196342970,0.0017008,96404.0,96385.0,0.41631154]
[1740196344344,0.0017008,96404.0,96385.0,0.42429722]
[1740196347270,0.0017008,96404.0,96385.0,0.40429722]
[1740196347472,0.1252,96397.0,96385.0,0.40429722]
[1740196347885,0.0484,96397.0,96385.0,0.40429722]
[1740196348091,0.0484,96397.0,96385.0,0.41181722]
[1740196348936,0.0484,96397.0,96385.0,0.30231722]
[1740196353437,0.0017008,96404.0,96385.0,0.30231722]
[1740196353643,0.0017008,96404.0,96385.0,0.38461722]
[1740196355923,0.0017008,96404.0,96385.0,0.30231722]
[1740196363754,0.0772,96403.0,96385.0,0.30231722]
[1740196367404,0.0479,96400.0,96385.0,0.30231722]
[1740196378281,0.0479,96400.0,96385.0,0.27227069]
[1740196378481,0.0805,96393.0,96385.0,0.27979069]
[1740196379080,0.0805,96393.0,96385.0,0.29433154]
[1740196379284,0.0805,96393.0,96385.0,0.28733154]
[1740196379845,0.0805,96393.0,96385.0,0.29433154]
[1740196380584,0.0805,96393.0,96385.0,0.32551354]
[1740196386109,0.0479,96400.0,96385.0,0.32551354]
[1740196399399,0.0479,96400.0,96385.0,0.31851354]
[1740196399764,0.0479,96400.0,96385.0,0.31151354]
[1740196399975,0.0017008,96404.0,96385.0,0.50311354]
[1740196400229,2e-07,96386.0,96385.0,0.69211354]
[1740196401433,2e-07,96386.0,96385.0,0.67911354]
[1740196402263,2e-07,96386.0,96385.0,0.66511354]